[Event "FIDE WYCC Girls U18 2023"]
[Site "Montesilvano"]
[Date "2023.11.17"]
[Round "5.18"]
[White "Dakic, Marta"]
[Black "Soares, Sara Joana De Moura "]
[Result "1-0"]
[ECO "C02"]
[WhiteElo "2013"]
[BlackElo "1772"]
[Annotator "NA"]
[PlyCount "137"]
[EventDate "2023.11.13"]
[EventType "swiss"]
[EventCountry "ITA"]
[SourceTitle "playchess.com"]
[Source "ChessBase"]
[SourceQuality "1"]
[TimeControl "40/5400+30:1800+30"]

1. e4 {[%emt 0:00:06]} e6 {[%emt 0:00:44]} 2. d4 {[%emt 0:00:33]} d5 {[%emt 0:00:30]} 3. e5 {[%emt 0:00:11]} c5 {[%emt 0:00:15]} 4. c3 {[%emt 0:00:11]} Nc6 {[%emt 0:00:18]} 5. Nf3 {[%emt 0:00:08]} Bd7 {[%emt 0:00:21]} 6. Be2 {[%emt 0:01:08]} Nh6 {[%emt 0:07:33]} 7. O-O {[%emt 0:07:32]} Qb6 {[%emt 0:07:54]} 8. dxc5 {[%emt 0:06:04]} Bxc5 {[%emt 0:00:58]} 9. b4 {[%emt 0:00:08]} Be7 {[%emt 0:00:58]} 10. b5 {[%emt 0:12:46]} Na5 {[%emt 0:02:12]} 11. a4 {[%emt 0:00:09]} Nf5 {[%emt 0:03:26]} 12. Bd3 {[%emt 0:12:15]} Nh6 {[%emt 0:12:41]} 13. Ra2 {[%emt 0:10:26]} Rc8 {[%emt 0:07:34]} 14. Bxh6 {[%emt 0:13:21]} gxh6 {[%emt 0:00:01]} 15. Nd4 {[%emt 0:03:08]} Nc4 {[%emt 0:09:50]} 16. Qh5 {[%emt 0:00:39]} Bc5 {[%emt 0:04:06]} 17. Bxc4 {[%emt 0:08:25]} dxc4 {[%emt 0:22:35]} 18. Qxh6 {[%emt 0:00:12]} Bxd4 {[%emt 0:03:21]} 19. cxd4 {[%emt 0:01:32]} Qxd4 {[%emt 0:00:19]} 20. Qg7 {[%emt 0:00:28]} Rf8 {[%emt 0:00:18]} 21. Rd2 {[%emt 0:00:43]} Qe4 {[%emt 0:01:09]} 22. Rfd1 {[%emt 0:06:36]} Rd8 {[%emt 0:04:19]} 23. Nc3 {[%emt 0:01:44]} Qf5 {[%emt 0:04:12]} 24. Rxd7 {[%emt 0:02:00]} Rxd7 {[%emt 0:03:19]} 25. Rxd7 {[%emt 0:00:06]} Kxd7 {[%emt 0:00:28]} 26. Qxf8 {[%emt 0:00:06]} Qxe5 {[%emt 0:00:03]} 27. Qxf7+ {[%emt 0:02:49]} Kc8 {[%emt 0:01:29]} 28. Qe8+ {[%emt 0:01:09]} Kc7 {[%emt 0:00:19]} 29. b6+ {[%emt 0:01:02]} Kxb6 {[%emt 0:02:24]} 30. Qd8+ {[%emt 0:05:49]} Kc5 {[%emt 0:01:20]} 31. Qd2 {[%emt 0:02:12]} Kb4 {[%emt 0:00:31]} 32. Qb2+ {[%emt 0:00:06]} Ka5 {[%emt 0:00:09]} 33. Kf1 {[%emt 0:01:00]} a6 {[%emt 0:00:02]} 34. g3 {[%emt 0:00:38]} b5 {[%emt 0:00:27]} 35. axb5 {[%emt 0:00:24]} axb5 {[%emt 0:00:01]} 36. Qa3+ {[%emt 0:02:03]} Kb6 {[%emt 0:00:01]} 37. Qb4 {[%emt 0:00:19]} Qf5 {[%emt 0:01:13]} 38. Qd6+ {[%emt 0:00:39]} Ka5 {[%emt 0:00:03]} 39. Qa3+ {[%emt 0:00:35]} Kb6 {[%emt 0:00:02]} 40. Qd6+ {[%emt 0:00:00]} Ka5 {[%emt 0:00:00]} 41. Qa3+ {[%emt 0:04:32]} Kb6 {[%emt 0:00:27]} 42. Qb4 {[%emt 0:00:04]} Kc6 {[%emt 0:06:03]} 43. h4 {[%emt 0:08:43]} Qd3+ {[%emt 0:03:37]} 44. Ke1 {[%emt 0:00:07]} Qf5 {[%emt 0:00:09]} 45. Qa5 {[%emt 0:06:34]} Qe5+ {[%emt 0:04:53]} 46. Kd1 {[%emt 0:04:24]} Qb8 {[%emt 0:00:41]} 47. Qa6+ {[%emt 0:02:48]} Kc5 {[%emt 0:00:02]} 48. Qxe6 {[%emt 0:00:37]} Kb4 {[%emt 0:00:07]} 49. Qe3 {[%emt 0:00:55]} Qd6+ {[%emt 0:03:42]} 50. Qd2 {[%emt 0:02:10]} Qe5 {[%emt 0:03:30]} 51. Qb2+ {[%emt 0:01:25]} Ka5 {[%emt 0:00:02]} 52. Qxb5+ {[%emt 0:00:06]} Qxb5 {[%emt 0:03:32]} 53. Nxb5 {[%emt 0:00:06]} Kxb5 {[%emt 0:00:02]} 54. h5 {[%emt 0:00:07]} Kc5 {[%emt 0:00:05]} 55. h6 {[%emt 0:00:12]} Kd5 {[%emt 0:00:22]} 56. g4 {[%emt 0:00:04]} Ke5 {[%emt 0:00:21]} 57. g5 {[%emt 0:00:04]} Kf5 {[%emt 0:02:09]} 58. f4 {[%emt 0:00:05]} Kg6 {[%emt 0:02:26]} 59. Kd2 {[%emt 0:00:08]} Kf5 {[%emt 0:00:23]} 60. Kc3 {[%emt 0:00:02]} Kg6 {[%emt 0:00:05]} 61. Kxc4 {[%emt 0:00:06]} Kf7 {[%emt 0:00:13]} 62. Kd5 {[%emt 0:00:08]} Ke7 {[%emt 0:00:29]} 63. f5 {[%emt 0:00:06]} Kf7 {[%emt 0:00:12]} 64. Ke5 {[%emt 0:00:05]} Kf8 {[%emt 0:00:19]} 65. g6 {[%emt 0:00:41]} hxg6 {[%emt 0:00:58]} 66. fxg6 {[%emt 0:00:05]} Kg8 {[%emt 0:00:24]} 67. Kf6 {[%emt 0:00:06]} Kh8 {[%emt 0:00:11]} 68. g7+ {[%emt 0:00:04]} Kg8 {[%emt 0:00:10]} 69. h7+ {[%emt 0:00:02]} 1-0

[Event "FIDE WYCC Girls U18 2023"]
[Site "Montesilvano"]
[Date "2023.11.17"]
[Round "5.19"]
[White "Sosovickova, Jana"]
[Black "O'Carroll, Om"]
[Result "1-0"]
[ECO "B62"]
[WhiteElo "2013"]
[BlackElo "1737"]
[Annotator "NA"]
[PlyCount "131"]
[EventDate "2023.11.13"]
[EventType "swiss"]
[EventCountry "ITA"]
[SourceTitle "playchess.com"]
[Source "ChessBase"]
[SourceQuality "1"]
[TimeControl "40/5400+30:1800+30"]

1. e4 {[%emt 0:00:04]} c5 {[%emt 0:00:03]} 2. Nf3 {[%emt 0:00:03]} d6 {[%emt 0:00:04]} 3. d4 {[%emt 0:00:12]} cxd4 {[%emt 0:00:08]} 4. Nxd4 {[%emt 0:00:04]} Nf6 {[%emt 0:00:05]} 5. Nc3 {[%emt 0:00:15]} Nc6 {[%emt 0:00:05]} 6. Bg5 {[%emt 0:00:48]} e6 {[%emt 0:00:23]} 7. Bb5 {[%emt 0:00:16]} Bd7 {[%emt 0:01:26]} 8. Qd3 {[%emt 0:01:03]} Nxd4 {[%emt 0:09:00]} 9. Bxd7+ {[%emt 0:02:52]} Qxd7 {[%emt 0:00:11]} 10. Qxd4 {[%emt 0:01:09]} Be7 {[%emt 0:01:56]} 11. O-O-O {[%emt 0:03:49]} a6 {[%emt 0:18:01]} 12. Bxf6 {[%emt 0:06:03]} Bxf6 {[%emt 0:10:22]} 13. Qxd6 {[%emt 0:01:01]} Qxd6 {[%emt 0:00:13]} 14. Rxd6 {[%emt 0:00:04]} Bxc3 {[%emt 0:00:55]} 15. bxc3 {[%emt 0:00:04]} Rc8 {[%emt 0:01:10]} 16. Rhd1 {[%emt 0:00:31]} O-O {[%emt 0:01:04]} 17. Kb2 {[%emt 0:01:17]} h6 {[%emt 0:08:29]} 18. Rd7 {[%emt 0:01:50]} b5 {[%emt 0:02:30]} 19. R1d6 {[%emt 0:03:25]} Rc4 {[%emt 0:04:33]} 20. Rxa6 {[%emt 0:13:34]} Rfc8 {[%emt 0:01:43]} 21. Rad6 {[%emt 0:10:43]} R8c5 {[%emt 0:19:32]} 22. Rd4 {[%emt 0:16:52]} Rxc3 {[%emt 0:00:40]} 23. Rd2 {[%emt 0:00:06]} R3c4 {[%emt 0:05:07]} 24. Rd8+ {[%emt 0:03:55]} Kh7 {[%emt 0:00:08]} 25. R8d4 {[%emt 0:00:07]} Kg6 {[%emt 0:01:57]} 26. Rxc4 {[%emt 0:02:41]} Rxc4 {[%emt 0:00:19]} 27. f3 {[%emt 0:00:08]} Kf6 {[%emt 0:03:11]} 28. Kb3 {[%emt 0:01:09]} Ke7 {[%emt 0:01:47]} 29. c3 {[%emt 0:01:23]} f6 {[%emt 0:01:00]} 30. Rd4 {[%emt 0:00:28]} Rc7 {[%emt 0:01:54]} 31. Kb4 {[%emt 0:01:29]} Ra7 {[%emt 0:01:03]} 32. Rd2 {[%emt 0:00:21]} Rb7 {[%emt 0:00:39]} 33. Ka5 {[%emt 0:03:58]} Rc7 {[%emt 0:01:30]} 34. Kxb5 {[%emt 0:06:13]} Rxc3 {[%emt 0:00:08]} 35. a4 Rb3+ {[%emt 0:05:34]} 36. Kc4 {[%emt 0:04:18]} Ra3 {[%emt 0:00:30]} 37. Kb4 {[%emt 0:00:04]} Ra1 {[%emt 0:00:11]} 38. h3 {[%emt 0:04:31]} Rb1+ {[%emt 0:00:20]} 39. Ka5 {[%emt 0:00:31]} Ra1 {[%emt 0:00:39]} 40. Kb5 {[%emt 0:00:00]} Rb1+ {[%emt 0:00:00]} 41. Ka5 {[%emt 0:14:28]} g6 {[%emt 0:07:45]} 42. Ka6 {[%emt 0:09:55]} Rb3 {[%emt 0:06:23]} 43. a5 {[%emt 0:01:27]} Rb4 {[%emt 0:01:30]} 44. Ka7 {[%emt 0:07:52]} Rb5 {[%emt 0:01:14]} 45. a6 {[%emt 0:02:13]} Rb4 {[%emt 0:00:46]} 46. h4 {[%emt 0:01:56]} Rb3 {[%emt 0:03:39]} 47. Rd4 {[%emt 0:02:09]} Rb2 {[%emt 0:00:58]} 48. Rd3 {[%emt 0:03:39]} Rb4 {[%emt 0:02:43]} 49. g4 {[%emt 0:00:11]} Rb2 {[%emt 0:03:21]} 50. Ka8 {[%emt 0:02:18]} Rb6 {[%emt 0:01:12]} 51. a7 {[%emt 0:00:04]} Rb4 {[%emt 0:00:47]} 52. Rd2 {[%emt 0:00:44]} Rb3 {[%emt 0:00:40]} 53. f4 {[%emt 0:00:53]} Rb4 {[%emt 0:02:09]} 54. g5 {[%emt 0:00:23]} hxg5 {[%emt 0:01:16]} 55. hxg5 {[%emt 0:00:06]} f5 {[%emt 0:04:06]} 56. e5 {[%emt 0:00:53]} Rb3 {[%emt 0:00:28]} 57. Rh2 {[%emt 0:00:13]} Kd7 {[%emt 0:00:53]} 58. Rh8 {[%emt 0:00:43]} Kc7 {[%emt 0:00:38]} 59. Re8 {[%emt 0:01:26]} Rd3 {[%emt 0:00:14]} 60. Re7+ {[%emt 0:00:14]} Kb6 {[%emt 0:00:12]} 61. Rxe6+ {[%emt 0:00:20]} Kc7 {[%emt 0:00:12]} 62. Re7+ {[%emt 0:00:09]} Kb6 {[%emt 0:00:17]} 63. Rb7+ {[%emt 0:00:39]} Kc6 {[%emt 0:01:03]} 64. e6 {[%emt 0:00:33]} Re3 {[%emt 0:00:56]} 65. e7 {[%emt 0:00:35]} Re2 {[%emt 0:00:35]} 66. Kb8 {[%emt 0:00:13]} 1-0

[Event "FIDE WYCC Girls U18 2023"]
[Site "Montesilvano"]
[Date "2023.11.17"]
[Round "5.20"]
[White "Skarbarchuk, Tetyana"]
[Black "Swara Lakshmi S Nair"]
[Result "1/2-1/2"]
[ECO "D85"]
[WhiteElo "2010"]
[BlackElo "1659"]
[Annotator "NA"]
[PlyCount "107"]
[EventDate "2023.11.13"]
[EventType "swiss"]
[EventCountry "ITA"]
[SourceTitle "playchess.com"]
[Source "ChessBase"]
[SourceQuality "1"]
[TimeControl "40/5400+30:1800+30"]

1. d4 {[%emt 0:00:03]} Nf6 {[%emt 0:02:20]} 2. c4 {[%emt 0:00:05]} g6 {[%emt 0:00:58]} 3. Nc3 {[%emt 0:00:07]} d5 {[%emt 0:00:06]} 4. cxd5 {[%emt 0:00:08]} Nxd5 {[%emt 0:00:07]} 5. Bd2 {[%emt 0:00:10]} Nb6 {[%emt 0:02:03]} 6. Bf4 {[%emt 0:06:27]} Bg7 {[%emt 0:04:28]} 7. e3 {[%emt 0:00:40]} c5 {[%emt 0:23:35]} 8. dxc5 {[%emt 0:24:29]} Qxd1+ {[%emt 0:08:14]} 9. Nxd1 {[%emt 0:06:21]} Na4 {[%emt 0:01:38]} 10. Bb5+ {[%emt 0:00:23]} Bd7 {[%emt 0:00:01]} 11. Bxa4 {[%emt 0:00:06]} Bxa4 {[%emt 0:00:08]} 12. Ne2 {[%emt 0:00:13]} Na6 {[%emt 0:12:42]} 13. Ndc3 {[%emt 0:03:38]} Bc6 {[%emt 0:02:16]} 14. O-O {[%emt 0:07:50]} Nxc5 {[%emt 0:08:19]} 15. Rad1 {[%emt 0:03:00]} O-O {[%emt 0:02:07]} 16. Nd5 {[%emt 0:11:14]} Rae8 {[%emt 0:08:55]} 17. Nec3 {[%emt 0:07:33]} b6 {[%emt 0:06:22]} 18. Bg5 {[%emt 0:10:31]} f6 {[%emt 0:01:49]} 19. Bh4 {[%emt 0:00:06]} Bxd5 {[%emt 0:02:34]} 20. Nxd5 {[%emt 0:00:25]} e6 {[%emt 0:01:21]} 21. Nc7 {[%emt 0:01:27]} Rc8 {[%emt 0:01:00]} 22. Bg3 {[%emt 0:00:42]} e5 {[%emt 0:02:29]} 23. Nd5 {[%emt 0:00:33]} Kf7 {[%emt 0:00:24]} 24. f3 {[%emt 0:02:46]} Rfd8 {[%emt 0:02:57]} 25. Bf2 {[%emt 0:09:08]} Bf8 {[%emt 0:02:56]} 26. Rd2 {[%emt 0:01:07]} Rd7 {[%emt 0:02:35]} 27. Rfd1 {[%emt 0:00:09]} Rcd8 {[%emt 0:00:05]} 28. e4 {[%emt 0:01:04]} Ne6 {[%emt 0:00:02]} 29. Rc2 {[%emt 0:01:40]} Bc5 {[%emt 0:01:00]} 30. Rdc1 {[%emt 0:00:26]} a5 {[%emt 0:01:10]} 31. Kf1 {[%emt 0:00:49]} Bxf2 {[%emt 0:00:35]} 32. Kxf2 {[%emt 0:00:16]} Nf4 {[%emt 0:00:20]} 33. Nxf4 {[%emt 0:01:52]} exf4 {[%emt 0:00:02]} 34. Rc7 {[%emt 0:00:14]} Ke6 {[%emt 0:00:37]} 35. R1c6+ {[%emt 0:01:20]} Rd6 {[%emt 0:00:01]} 36. Ke2 {[%emt 0:00:13]} h5 {[%emt 0:01:14]} 37. h3 {[%emt 0:00:59]} f5 {[%emt 0:00:18]} 38. Rxd6+ {[%emt 0:00:22]} Rxd6 {[%emt 0:00:07]} 39. Rc8 {[%emt 0:00:38]} fxe4 {[%emt 0:00:25]} 40. Re8+ {[%emt 0:00:00]} Kf6 {[%emt 0:00:00]} 41. Rxe4 {[%emt 0:09:28]} Kf5 {[%emt 0:01:39]} 42. Rc4 {[%emt 0:03:49]} Rd5 {[%emt 0:10:12]} 43. h4 {[%emt 0:11:14]} g5 {[%emt 0:15:16]} 44. hxg5 {[%emt 0:00:09]} Kxg5 {[%emt 0:00:07]} 45. b4 {[%emt 0:03:50]} axb4 {[%emt 0:05:10]} 46. Rxb4 {[%emt 0:00:07]} b5 {[%emt 0:00:03]} 47. a4 {[%emt 0:01:01]} bxa4 {[%emt 0:00:08]} 48. Rxa4 {[%emt 0:00:03]} Rb5 {[%emt 0:01:35]} 49. Kf2 {[%emt 0:00:40]} Rb2+ {[%emt 0:00:21]} 50. Kg1 {[%emt 0:00:05]} Kh4 {[%emt 0:00:44]} 51. Kh2 {[%emt 0:00:05]} Kg5 {[%emt 0:00:22]} 52. Ra5+ {[%emt 0:00:59]} Kh4 {[%emt 0:01:09]} 53. Rf5 {[%emt 0:00:38]} Rxg2+ {[%emt 0:00:19]} 54. Kxg2 {[%emt 0:00:07]} 1/2-1/2

[Event "FIDE WYCC Girls U18 2023"]
[Site "Montesilvano"]
[Date "2023.11.17"]
[Round "5.21"]
[White "Tikvesli, Ceylin"]
[Black "Barwinska, Ewa"]
[Result "0-1"]
[ECO "B40"]
[WhiteElo "1736"]
[BlackElo "1974"]
[Annotator "NA"]
[PlyCount "84"]
[EventDate "2023.11.13"]
[EventType "swiss"]
[EventCountry "ITA"]
[SourceTitle "playchess.com"]
[Source "ChessBase"]
[SourceQuality "1"]
[TimeControl "40/5400+30:1800+30"]

1. e4 {[%emt 0:00:04]} c5 {[%emt 0:00:08]} 2. Nf3 {[%emt 0:00:06]} e6 {[%emt 0:00:06]} 3. c3 {[%emt 0:00:11]} Nf6 {[%emt 0:00:13]} 4. e5 {[%emt 0:00:06]} Nd5 {[%emt 0:00:08]} 5. d4 {[%emt 0:00:05]} cxd4 {[%emt 0:00:16]} 6. cxd4 {[%emt 0:00:11]} d6 {[%emt 0:00:31]} 7. a3 {[%emt 0:02:28]} Nc6 {[%emt 0:04:08]} 8. Bd3 {[%emt 0:01:26]} g6 {[%emt 0:03:52]} 9. Qe2 {[%emt 0:09:10]} Bg7 {[%emt 0:05:08]} 10. O-O {[%emt 0:03:51]} O-O {[%emt 0:03:24]} 11. Qe4 {[%emt 0:07:05]} f5 {[%emt 0:08:21]} 12. exf6 {[%emt 0:07:34]} Qxf6 {[%emt 0:02:03]} 13. Bg5 {[%emt 0:06:58]} Qf5 {[%emt 0:07:23]} 14. Be3 {[%emt 0:04:01]} Nf6 {[%emt 0:13:48]} 15. Qxf5 {[%emt 0:03:38]} gxf5 {[%emt 0:00:17]} 16. Nc3 {[%emt 0:02:41]} Bd7 {[%emt 0:03:55]} 17. Rfd1 {[%emt 0:10:38]} d5 {[%emt 0:06:27]} 18. Rac1 {[%emt 0:04:01]} Ne4 {[%emt 0:02:51]} 19. g3 {[%emt 0:02:15]} Be8 {[%emt 0:01:17]} 20. Be2 {[%emt 0:04:14]} Bh5 {[%emt 0:03:58]} 21. Ng5 {[%emt 0:06:47]} Nxc3 {[%emt 0:03:45]} 22. Bxh5 {[%emt 0:04:54]} Nxd1 {[%emt 0:00:15]} 23. Rxd1 {[%emt 0:00:06]} Rf6 {[%emt 0:02:05]} 24. Bf4 {[%emt 0:01:37]} Bh6 {[%emt 0:07:26]} 25. h4 {[%emt 0:00:49]} Bxg5 {[%emt 0:01:19]} 26. hxg5 {[%emt 0:03:42]} Rff8 {[%emt 0:00:22]} 27. Re1 {[%emt 0:00:53]} Nxd4 {[%emt 0:01:51]} 28. Be5 {[%emt 0:00:09]} Nc6 {[%emt 0:02:36]} 29. Bd6 {[%emt 0:00:54]} e5 {[%emt 0:02:36]} 30. Bxf8 {[%emt 0:01:09]} Rxf8 {[%emt 0:00:09]} 31. b4 {[%emt 0:01:36]} a6 {[%emt 0:01:14]} 32. a4 {[%emt 0:00:23]} e4 {[%emt 0:01:17]} 33. b5 {[%emt 0:00:41]} axb5 {[%emt 0:00:15]} 34. axb5 {[%emt 0:00:06]} Ne5 {[%emt 0:00:21]} 35. Rd1 {[%emt 0:01:26]} Rd8 {[%emt 0:00:29]} 36. Rd4 {[%emt 0:00:38]} Kf8 {[%emt 0:02:51]} 37. Bd1 {[%emt 0:01:35]} Ke7 {[%emt 0:00:24]} 38. Kg2 {[%emt 0:00:35]} Kd6 {[%emt 0:01:12]} 39. Rb4 {[%emt 0:02:31]} Kc5 {[%emt 0:00:38]} 40. Rb2 {[%emt 0:00:00]} d4 {[%emt 0:00:00]} 41. Kf1 {[%emt 0:07:26]} Nc4 {[%emt 0:03:35]} 42. Bb3 {[%emt 0:03:06]} Nxb2 {[%emt 0:00:35]} 0-1

[Event "FIDE WYCC Girls U18 2023"]
[Site "Montesilvano"]
[Date "2023.11.17"]
[Round "5.22"]
[White "Sasvatha A"]
[Black "Follana Albelda, Lucia"]
[Result "1-0"]
[ECO "A47"]
[WhiteElo "1568"]
[BlackElo "1946"]
[Annotator "NA"]
[PlyCount "131"]
[EventDate "2023.11.13"]
[EventType "swiss"]
[EventCountry "ITA"]
[SourceTitle "playchess.com"]
[Source "ChessBase"]
[SourceQuality "1"]
[TimeControl "40/5400+30:1800+30"]

1. d4 {[%emt 0:00:02]} Nf6 {[%emt 0:00:14]} 2. Nf3 {[%emt 0:00:43]} b6 {[%emt 0:00:16]} 3. Bf4 {[%emt 0:00:12]} Bb7 {[%emt 0:00:06]} 4. e3 {[%emt 0:00:07]} Nh5 {[%emt 0:00:35]} 5. Bg5 {[%emt 0:00:42]} h6 {[%emt 0:00:09]} 6. Bh4 {[%emt 0:00:05]} g5 {[%emt 0:00:12]} 7. Ne5 {[%emt 0:07:20]} Nf6 {[%emt 0:05:29]} 8. Bg3 {[%emt 0:00:22]} d6 {[%emt 0:00:26]} 9. Nf3 {[%emt 0:00:09]} Ne4 {[%emt 0:01:13]} 10. Nbd2 {[%emt 0:02:16]} Nxg3 {[%emt 0:00:40]} 11. hxg3 {[%emt 0:00:06]} Bg7 {[%emt 0:00:16]} 12. c3 {[%emt 0:00:14]} e6 {[%emt 0:01:41]} 13. a4 {[%emt 0:03:06]} a6 {[%emt 0:04:25]} 14. Qb3 {[%emt 0:00:25]} Nd7 {[%emt 0:03:31]} 15. Bd3 {[%emt 0:00:18]} c5 {[%emt 0:05:29]} 16. Qc2 {[%emt 0:07:21]} Rc8 {[%emt 0:01:20]} 17. Qd1 {[%emt 0:03:31]} Qe7 {[%emt 0:02:01]} 18. Qe2 {[%emt 0:00:34]} Ra8 {[%emt 0:06:48]} 19. Rd1 {[%emt 0:04:32]} O-O {[%emt 0:09:36]} 20. Nc4 {[%emt 0:16:17]} f5 {[%emt 0:09:43]} 21. dxc5 {[%emt 0:05:31]} bxc5 {[%emt 0:03:21]} 22. Na5 {[%emt 0:02:07]} Be4 {[%emt 0:01:20]} 23. Bxe4 {[%emt 0:09:53]} fxe4 {[%emt 0:00:11]} 24. Nh2 {[%emt 0:01:37]} Ne5 {[%emt 0:01:58]} 25. Ng4 {[%emt 0:04:17]} Nf7 {[%emt 0:03:11]} 26. Nc4 {[%emt 0:01:32]} Rfb8 {[%emt 0:04:16]} 27. a5 {[%emt 0:06:17]} Ra7 {[%emt 0:03:01]} 28. Nb6 {[%emt 0:00:51]} d5 {[%emt 0:00:21]} 29. f3 {[%emt 0:01:26]} exf3 {[%emt 0:02:21]} 30. gxf3 {[%emt 0:00:42]} Qe8 {[%emt 0:06:09]} 31. Qc2 {[%emt 0:03:26]} h5 {[%emt 0:13:13]} 32. Rxh5 {[%emt 0:00:50]} Kf8 {[%emt 0:03:03]} 33. Qg6 {[%emt 0:04:23]} Nd6 {[%emt 0:04:00]} 34. Qxg5 {[%emt 0:03:57]} Rf7 {[%emt 0:00:26]} 35. Ne5 {[%emt 0:01:25]} Rf5 {[%emt 0:01:20]} 36. Rh8+ {[%emt 0:02:59]} Bxh8 {[%emt 0:01:10]} 37. Nbd7+ {[%emt 0:00:10]} Qxd7 {[%emt 0:00:34]} 38. Nxd7+ {[%emt 0:00:06]} Kf7 {[%emt 0:00:45]} 39. Qh4 {[%emt 0:05:06]} Rg8 {[%emt 0:00:20]} 40. f4 {[%emt 0:00:00]} Ke8 {[%emt 0:00:00]} 41. Nxc5 {[%emt 0:01:42]} Kf7 {[%emt 0:05:11]} 42. g4 {[%emt 0:01:18]} Rf6 {[%emt 0:00:33]} 43. Nd7 {[%emt 0:00:06]} Rfg6 {[%emt 0:00:27]} 44. g5 {[%emt 0:03:39]} Bg7 {[%emt 0:01:03]} 45. Qh7 {[%emt 0:03:20]} Nc4 {[%emt 0:00:55]} 46. b3 {[%emt 0:16:40]} Rh8 {[%emt 0:00:22]} 47. Qxh8 Bxh8 {[%emt 0:00:05]} 48. bxc4 {[%emt 0:00:10]} Bxc3+ {[%emt 0:00:51]} 49. Ke2 {[%emt 0:00:11]} Ke7 {[%emt 0:02:17]} 50. Nb8 {[%emt 0:04:46]} dxc4 {[%emt 0:03:09]} 51. Rc1 {[%emt 0:01:24]} Bxa5 {[%emt 0:00:18]} 52. Nc6+ {[%emt 0:00:06]} Kd6 {[%emt 0:00:47]} 53. Nxa5 {[%emt 0:00:06]} Rg8 {[%emt 0:00:12]} 54. Rxc4 {[%emt 0:00:11]} e5 {[%emt 0:00:51]} 55. Rc6+ {[%emt 0:00:11]} Kd5 {[%emt 0:00:05]} 56. Rxa6 {[%emt 0:00:05]} exf4 {[%emt 0:00:29]} 57. exf4 {[%emt 0:00:05]} Ke4 {[%emt 0:00:13]} 58. Rf6 {[%emt 0:00:27]} Ra8 {[%emt 0:00:06]} 59. Nb3 {[%emt 0:00:57]} Ra2+ {[%emt 0:00:31]} 60. Nd2+ {[%emt 0:00:12]} Kd5 {[%emt 0:00:12]} 61. g6 {[%emt 0:00:07]} Ra8 {[%emt 0:00:17]} 62. f5 {[%emt 0:00:34]} Ke5 {[%emt 0:00:28]} 63. Rf7 {[%emt 0:00:05]} Rg8 {[%emt 0:00:40]} 64. g7 {[%emt 0:00:08]} Kf4 {[%emt 0:00:18]} 65. f6 {[%emt 0:00:06]} Kg5 {[%emt 0:00:10]} 66. Rf8 {[%emt 0:00:06]} 1-0

[Event "FIDE WYCC Girls U18 2023"]
[Site "Montesilvano"]
[Date "2023.11.17"]
[Round "5.23"]
[White "Sukyte, Kotryna"]
[Black "Wan, Qian"]
[Result "0-1"]
[ECO "D31"]
[WhiteElo "1651"]
[BlackElo "1945"]
[Annotator "NA"]
[PlyCount "90"]
[EventDate "2023.11.13"]
[EventType "swiss"]
[EventCountry "ITA"]
[SourceTitle "playchess.com"]
[Source "ChessBase"]
[SourceQuality "1"]
[TimeControl "40/5400+30:1800+30"]

1. d4 {[%emt 0:00:02]} d5 {[%emt 0:00:06]} 2. c4 {[%emt 0:00:09]} e6 {[%emt 0:00:04]} 3. Nc3 {[%emt 0:00:16]} Bb4 {[%emt 0:00:07]} 4. e3 {[%emt 0:00:22]} Nf6 {[%emt 0:00:05]} 5. Bd2 {[%emt 0:00:27]} O-O {[%emt 0:00:06]} 6. Nf3 {[%emt 0:00:06]} b6 {[%emt 0:00:44]} 7. Bd3 {[%emt 0:01:24]} Bb7 {[%emt 0:00:06]} 8. a3 {[%emt 0:01:21]} Bd6 {[%emt 0:02:08]} 9. O-O {[%emt 0:03:01]} c5 {[%emt 0:00:51]} 10. Qe2 {[%emt 0:03:14]} Nbd7 {[%emt 0:06:29]} 11. Rac1 {[%emt 0:05:03]} Rc8 {[%emt 0:03:31]} 12. cxd5 {[%emt 0:07:54]} exd5 {[%emt 0:00:33]} 13. Rfd1 {[%emt 0:03:06]} c4 {[%emt 0:06:15]} 14. Bc2 {[%emt 0:04:21]} Re8 {[%emt 0:00:58]} 15. a4 {[%emt 0:09:11]} a6 {[%emt 0:03:57]} 16. Na2 {[%emt 0:02:30]} b5 {[%emt 0:08:10]} 17. axb5 {[%emt 0:00:55]} axb5 {[%emt 0:00:02]} 18. Nb4 {[%emt 0:01:15]} Qe7 {[%emt 0:00:45]} 19. Qe1 {[%emt 0:03:14]} Ne4 {[%emt 0:00:11]} 20. Bc3 {[%emt 0:01:36]} f5 {[%emt 0:08:13]} 21. h3 {[%emt 0:15:00]} g5 {[%emt 0:10:24]} 22. Nh2 {[%emt 0:11:52]} Ndf6 {[%emt 0:00:51]} 23. Bxe4 {[%emt 0:03:46]} Nxe4 {[%emt 0:03:12]} 24. Nc2 {[%emt 0:02:48]} Qf6 {[%emt 0:03:51]} 25. Bb4 {[%emt 0:07:37]} Bb8 {[%emt 0:00:46]} 26. Nf1 {[%emt 0:01:29]} g4 {[%emt 0:02:21]} 27. hxg4 {[%emt 0:04:36]} fxg4 {[%emt 0:00:02]} 28. Nd2 {[%emt 0:00:59]} Qh4 {[%emt 0:09:33]} 29. Nxe4 {[%emt 0:02:11]} Qh2+ {[%emt 0:00:42]} 30. Kf1 {[%emt 0:00:39]} dxe4 {[%emt 0:01:10]} 31. Ke2 {[%emt 0:03:15]} Qxg2 {[%emt 0:00:56]} 32. Qh1 {[%emt 0:01:06]} Qf3+ {[%emt 0:00:17]} 33. Qxf3 {[%emt 0:00:12]} exf3+ {[%emt 0:00:03]} 34. Kd2 {[%emt 0:00:48]} Rcd8 {[%emt 0:00:59]} 35. Rh1 {[%emt 0:01:04]} Re5 {[%emt 0:07:23]} 36. Kc3 {[%emt 0:00:37]} Rf5 {[%emt 0:01:34]} 37. Rcf1 {[%emt 0:00:53]} h5 {[%emt 0:00:29]} 38. Be7 {[%emt 0:00:18]} Re8 {[%emt 0:01:34]} 39. Bh4 {[%emt 0:00:13]} Be4 {[%emt 0:01:40]} 40. Rhg1 {[%emt 0:00:00]} Bh2 {[%emt 0:00:00]} 41. Rh1 {[%emt 0:03:11]} Bd6 {[%emt 0:01:30]} 42. Rhg1 {[%emt 0:10:51]} b4+ {[%emt 0:02:58]} 43. Nxb4 {[%emt 0:01:19]} Rb8 {[%emt 0:00:05]} 44. Na6 {[%emt 0:00:53]} Rb3+ {[%emt 0:00:21]} 45. Kd2 {[%emt 0:01:34]} Rxb2+ {[%emt 0:00:05]} 0-1